Cogmind - Beta 14 @@@ ROGUE MODE // 2024.08.18 @ 09:43:33 Player: Gilvian Result: Destroyed by G-34 Mercenary with Small Laser Performance ------------- Evolutions (0) 0 Regions Visited (1) 200 Robots Destroyed (24) 120 Value Destroyed (584) 584 Prototype IDs (3) 60 Alien Tech Used (0) 0 Bonus (0) 0 TOTAL SCORE: 964 Bonus ------- None Cogmind --------- Core Integrity 0/250 Matter 292/300 Energy 53/100 System Corruption 0% Temperature Cool (6) Movement Treading (160) Location -10/Materials Parts ------- > --- POWER (1) -------- (None) > --- PROPULSION (2) --- Light Treads > --- UTILITY (2) ------ Small Storage Unit Core Shielding > --- WEAPON (2) ------- EMP Blaster Hammer > --- INVENTORY (8) ---- Improved Heat Sink Weight Redist. System Subdweller Optics Sensor Array Sensor Array Signal Interpreter Peak State ------------ > --- POWER ------------ Light Ion Engine > --- PROPULSION ------- Light Treads Wheel > --- UTILITY ---------- Small Storage Unit Core Shielding > --- WEAPON ----------- Assault Rifle Light Assault Rifle > --- INVENTORY -------- Improved Heat Sink Subdweller Optics Sensor Array Weapon Shielding Light Assault Rifle Scrap Shield Fragment [Rating: 8] Favorites ----------- Power Light Ion Engine Engine Light Ion Engine Propulsion Light Treads Treads Light Treads Wheel Wheel Utility Small Storage Unit Device Seismic Detector Storage Small Storage Unit Protection Core Shielding Weapon Assault Rifle Ballistic Gun Assault Rifle Launcher EMP Blaster Impact Weapon Hammer Build | -11 -10 ------- Run | Yrd Mat Slots Evolved . | . . Power . | . . Propulsion . | . . Utility . | . . Weapon . | . . Parts Attached 17 | 6 11 Power 1 | 1 . Engine 1 | 1 . Core . | . . Reactor . | . . Propulsion 6 | 2 4 Treads 5 | 2 3 Leg . | . . Wheel 1 | . 1 Hover . | . . Flight . | . . Utility 3 | 1 2 Device 1 | . 1 Storage 1 | 1 . Processor . | . . Hackware . | . . Protection 1 | . 1 Artifact . | . . Weapon 7 | 2 5 Energy Gun . | . . Energy Cannon . | . . Ballistic Gun 5 | 2 3 Ballistic Cannon . | . . Launcher 1 | . 1 Special Weapon . | . . Impact Weapon 1 | . 1 Slashing Weapon . | . . Piercing Weapon . | . . Special Melee Weapon . | . . Unidentified Prototypes . | . . Parts Lost 9 | . 9 Power 1 | . 1 Propulsion 3 | . 3 Utility 1 | . 1 Weapon 4 | . 4 Highest Loss Streak 2 | . 2 To Critical Strikes . | . . Average Slot Usage (%) 85 | . 85 Engine 7 | . 7 Treads 24 | . 24 Device 3 | . 3 Storage 14 | . 14 Protection 8 | . 8 Ballistic Gun 21 | . 21 Launcher 2 | . 2 Impact Weapon 2 | . 2 Peak Build Rating 8 | 6 8 Average Rating 6 | 4 6 On Entrance 3 | . 6 Naked Turns . | . . Heaviest Build 13 | 12 13 Greatest Support 40 | 40 40 Greatest Overweight (x) 1 | . 1 Average Overweight (x) . | . . Largest Inventory Capacity 8 | 8 8 Average Capacity 7 | 6 8 Most Carried 8 | 4 8 Average Carried 5 | . 5 Final Capacity 8 | 8 8 Final Carried 6 | . 6 Class Distribution -------------------- 100% | Mutant Dominant Class ---------------- Mutant | -10/Materials Resources | -11 -10 ----------- Run | Yrd Mat Matter Collected 645 | 172 473 Remotely . | . . Salvage Created 847 | . 847 Parts 48 | . 48 Haulers Intercepted . | . . Recyclers Shooed 2 | . 2 Parts Field Recycled . | . . Retrieved Matter . | . . Parts Self-Destructed . | . . Prevented . | . . Kills | -11 -10 ------- Run | Yrd Mat Combat Hostiles Destroyed 17 | . 17 Guns 13 | . 13 AOE 2 | . 2 Classes Destroyed 6 | . 6 Worker 3 | . 3 Recycler 2 | . 2 Watcher 2 | . 2 Swarmer 3 | . 3 Grunt 11 | . 11 Subdweller 3 | . 3 Best Kill Streak 4 | . 4 Combat Bots Only 3 | . 3 Max Kills in Single Turn 2 | . 2 Gunslinging . | . . Exploded 2 | . 2 Melee . | . . Uniques/NPCs Destroyed . | . . Combat | -11 -10 -------- Run | Yrd Mat Hostile Shots Fired 134 | . 134 Missed 39 | . 39 Damage Taken 1428 | . 1428 Core 251 | . 251 Absorbed by Shields . | . . Redirected to Shielding 28 | . 28 Core Remaining (%) 100 | 100 . Volleys Fired 108 | . 108 Largest 2 | . 2 Hottest 40 | . 40 Shots Fired 185 | . 185 Gun 181 | . 181 Cannon . | . . Launcher 4 | . 4 Special . | . . Kinetic 181 | . 181 Thermal . | . . Explosive . | . . Electromagnetic 4 | . 4 Robot Hit Streak 15 | . 15 Robot Miss Streak 5 | . 5 Penetration Max . | . . Secondary Targets . | . . Shots Hit Robots 125 | . 125 Core Hits 44 | . 44 Critical Kills 1 | . 1 Critical Parts Destroyed . | . . Critical Strikes 1 | . 1 Destroy 1 | . 1 Melee Attacks 6 | . 6 Impact 6 | . 6 Slashing . | . . Piercing . | . . Sneak Attacks . | . . Combat Hostiles . | . . Follow-up Attacks . | . . Damage Inflicted 1478 | . 1478 Guns 1229 | . 1229 Cannons . | . . Explosions 93 | . 93 Melee 156 | . 156 Ramming . | . . Kinetic 1229 | . 1229 Thermal . | . . Explosive . | . . Electromagnetic 93 | . 93 Impact 156 | . 156 Slashing . | . . Piercing . | . . Highest Corruption . | . . Average Corruption . | . . Corruption Purged . | . . Corruption Blocked . | . . Overload Shots . | . . Overflow Damage 36 | . 36 Projectiles . | . . Explosions . | . . Melee 36 | . 36 Knockbacks 1 | . 1 Impact 1 | . 1 Kinetic . | . . Secondary . | . . Self-Inflicted Damage 19 | . 19 Shots 2 | . 2 Rammed . | . . Targets Rammed . | . . Kicked . | . . Crushed . | . . Highest Temperature 20 | . 20 Average Temperature 4 | . 4 Received Heat Transfer 537 | . 537 Siege Activations . | . . Robots Corrupted 2 | . 2 Combat Hostiles 2 | . 2 Parts Fried 1 | . 1 Impact Corruptions 3 | . 3 Robots Melted . | . . Combat Hostiles . | . . Parts Melted . | . . Heat Transferred . | . . Parts Sabotaged . | . . Parts Stolen . | . . Parts Stripped . | . . Power Chain Reactions . | . . Alert | -11 -10 ------- Run | Yrd Mat Peak Influence 174 | . 174 Initial . | . . Average 65 | . 68 Maximum Alert Level . | . . Low Security (%) 100 | 100 100 Level 1 . | . . Level 2 . | . . Level 3 . | . . Level 4 . | . . Level 5 . | . . High Security . | . . Max Security . | . . Squads Dispatched 7 | . 7 Investigation 4 | . 4 Extermination . | . . Reinforcement 3 | . 3 Assault . | . . Garrison . | . . Intercept . | . . Searches Triggered . | . . Construction Impeded . | . . Haulers Reinforced . | . . Active Scanning Responses . | . . Cargo Convoy Interrupts . | . . Stealth | -11 -10 --------- Run | Yrd Mat Distress Signals 2 | . 2 Communications Jammed . | . . Distress Signals . | . . Times Spotted 32 | . 32 Peak Tracking Total 3 | . 3 Tactical Retreats 2 | . 2 Traps | -11 -10 ------- Run | Yrd Mat Traps Triggered 4 | . 4 Indirectly 1 | . 1 Trap Hack Attempts . | . . Triggered . | . . Disarmed . | . . Reprogrammed . | . . Reused . | . . Traps Extracted . | . . Installed . | . . Triggered . | . . Machines | -11 -10 ---------- Run | Yrd Mat Machines Disabled . | . . Max in Single Turn . | . . Machines Repaired . | . . Machines Dismantled . | . . Machines Sabotaged . | . . Overloaded Fab Kills . | . . Hacking | -11 -10 --------- Run | Yrd Mat Machines Accessed 7 | . 7 Terminals 4 | . 4 Fabricators . | . . Repair Stations 1 | . 1 Recycling Units 2 | . 2 Scanalyzers . | . . Garrison Access . | . . Total Hacks 27 | . 27 Successful 16 | . 16 Failed 11 | . 11 Catastrophic 1 | . 1 Database Lockouts . | . . Manual . | . . Terminals 15 | . 15 Fabricators . | . . Repair Stations 4 | . 4 Recycling Units 8 | . 8 Scanalyzers . | . . Garrison Access . | . . Terminal Hacks 7 | . 7 Record 2 | . 2 Prototype ID Bank 2 | . 2 Branch Access Points 1 | . 1 Terminal Index 1 | . 1 Transport Status 1 | . 1 Fabricator Hacks . | . . Repair Station Hacks 1 | . 1 Scan Component 1 | . 1 Recycling Unit Hacks 8 | . 8 Recycle Component 2 | . 2 Process 2 | . 2 Report Inventory 2 | . 2 Retrieve Matter 2 | . 2 Scanalyzer . | . . Garrison Access Hacks . | . . Unauthorized Hacks . | . . Terminals . | . . Fabricators . | . . Repair Stations . | . . Recycling Units . | . . Scanalyzers . | . . Garrison Access . | . . Data Cores Recovered . | . . Used . | . . Hacking Detections 4 | . 4 Full Trace Events 3 | . 3 Feedback Events . | . . Feedback Blocked . | . . Robot Schematics Acquired . | . . Robots Built . | . . Authchips . | . . Time . | . . Total Robot Build Rating . | . . Part Schematics Acquired . | . . Parts Built . | . . Authchips . | . . Time . | . . Total Part Build Rating . | . . Parts Repaired . | . . Time . | . . Parts Recycled 2 | . 2 Recycled Matter 435 | . 435 Retrieved Matter 435 | . 435 Retrieved Components . | . . Parts Scanalyzed . | . . Part Schematics Acquired . | . . Parts Damaged . | . . Bothacking | -11 -10 ------------ Run | Yrd Mat Used RIF Installer . | . . Robots Hacked . | . . Non-combat . | . . Combat . | . . Robot Hacks Applied . | . . Relay Couplers Released . | . . Fabnet Peak Effective % . | . . Robots Rewired . | . . Allies Hacked . | . . Hacks Repelled . | . . Allies | -11 -10 -------- Run | Yrd Mat Total Allies . | . . Largest Group . | . . Highest-Rated Group . | . . Highest-Rated Ally . | . . Total Orders . | . . Ally Attacks . | . . Total Damage . | . . Kills . | . . Allies Corrupted . | . . Allies Melted . | . . Intel | -11 -10 ------- Run | Yrd Mat Robot Analysis Total . | . . Derelict Logs Recovered . | . . Drone Launches . | . . Drone Recoveries . | . . Exploration | -11 -10 ------------- Run | Yrd Mat Turns Passed 1926 | 87 1839 Spaces Moved 998 | 55 943 Core 16 | 16 . Treads 938 | 39 899 Legs . | . . Wheels 44 | . 44 Hover . | . . Flight . | . . Fastest Speed 50 | 50 95 Average Speed 155 | 128 156 Slowest Speed 160 | 160 160 Overloaded Moves . | . . Propulsion Burnouts . | . . Robots Hopped . | . . Cave-ins Triggered . | . . Exploration Rate (%) 49 | 4 95 Regions Visited 1 Branch Regions . Pre-discovered Areas . | . . Known Exits Taken . | . . Unknown Exits Taken 1 | 1 . Scrap Searched . | . . Spaces Dug . | . . Terrain Destroyed . | . . Melee . | . . Projectile . | . . AOE . | . . Terrain Rammed . | . . Walls Destroyed . | . . Machines Disabled . | . . Actions | -11 -10 --------- Run | Yrd Mat Total 1205 | 72 1133 Wait 46 | 6 40 Move 997 | 54 943 Hop . | . . Pick Up 27 | 6 21 Fast Attach . | . . Attach 16 | 6 10 Detach . | . . Swap 1 | . 1 Drop 4 | . 4 Fire 108 | . 108 Melee 6 | . 6 Ram . | . . Kick . | . . Crush . | . . Escape Stasis . | . . Rewire . | . . Trap . | . . Miscellaneous . | . . Route ------- -11/Scrapyard -10/Materials (discovered 5 exits: [*Mat x3] / *Min / [*Sub]) History --------- Turn | Location | Event 10 | -11/Scrapyard | Discovered new exit (range 15) 88 | -11/Scrapyard | Entered Materials 304 | -10/Materials | Build established: Mutant 409 | -10/Materials | Discovered new exit (range 16) 588 | -10/Materials | Derelicts attacked the area 720 | -10/Materials | Discovered new exit (range 9) 814 | -10/Materials | Discovered new exit (range 16) 1022 | -10/Materials | Core integrity fell below 50% 1218 | -10/Materials | Identified exit to Mines 1406 | -10/Materials | Discovered new exit (range 14) 1744 | -10/Materials | Discovered new exit (range 15) 1750 | -10/Materials | Core integrity fell below 20% 1927 | -10/Materials | Destroyed by G-34 Mercenary with Small Laser Last Messages --------------- S-10 Pest destroyed. EXIT=FOUND Lgt. Treads destroyed. Destroyed Flight Unit. S-10 Pest system corrupted by crushing effect. S-10 Pest misfires. S-10 Pest system terminally corrupted. Acquired 4 matter. U-05 Engineer lays Concrete. Dropped Scrap Shield Fragment. Dropped Datajack. K-01 Serf collects debris. Alarm Trap short circuited. An alarm sounds. ALERT: Alarm triggered, dispatching investigation squad. Door malfunctions. K-01 Serf destroyed. G-34 Mercenary knocked back. Map ----- +----------------------------------------------------+ | ??????# #??????????????# #?######### | | ??????######+###??????????????# #?????????# "" | | ???????????# #????????????????# #?????????#! "" | | ######?????# #????????????????# #?????????# "? | | T #?????# #????????????????# #?????????# ? | | #######=##########???????# #?????????#####? | | """ # *%* ===%===#???# #?????????###### | | """ # =!! #######??######## #???####### | | """ + #????????# ## ##### # "" | | # ######????????# = # "" | | #+#### !&#?######??????# + "" | | # &# #??????# # | | # # % #??????# t ###+###### # | | """ +[ !* <######## =%## ! ######## | | """ # =#######?# !# %!## #????######## | | """ # #???????# # * ## """ #????# | | # ##??????# #%=%## """ #????# | | ###### ##??????# ! # ## """ #????# """ | | + ##??????# # ## #????# """ | | " # ##??????# + ## #????# """ | | " # "#??????# # ###########???# | | " # ######### # # [ ! #???# | | # # # # # #???# ! | | ###### " # # # """ """ #???# % | | ###### " # # # """ """ #???# "Y" | | # " # #@ / """ """ #???# """ | | # # # < # """ """ #???######## | | " ######## g# """/""" #??????????? | | + [ "#?????##### & #??????????? | | """ # < "#?????????###########????####### | | """ # *= ##????????????????????????#== | | """ ##" #?????????????????????????#== ### | | ## " #?????????????????????????#]] # | | ####### """""""##?????????????????????????#] # | | ??????### #??????????????????????????#! # | | ????????#########??????????????????????????#!! # | | ???????????????????????????????????????????##### | | ???????????????????????????????????????????????### | | | | | | | | | | | | | | | | | | | | | | | | | +----------------------------------------------------+ Best States ------------- Heat Dissipation 25 Energy Generation 10 Energy Capacity 125 Matter Stores 300 Matter Capacity 300 Sight Range 16 Terrain Scan Density 10 Core Shielding 20 Evasion (%) 50 Recoil Reduction 2 Item Schematics ----------------- None Robot Schematics ------------------ None Fabricated ------------ Nothing Alien Tech Used ----------------- None Achievements -------------- Let's See Who's Tougher Challenges ------------ None Game ------ Seed CryofiberReactiveSteel Manual? 0 Play Time 00:15:09 Cumulative 4.9 hours Start 2024.08.18 @ 09:27:52 End 2024.08.18 @ 09:43:33 Sessions 1 Manual Loads 0 Difficulty Rogue Special Mode None Game No. 14 Rogue 14 Adventurer 0 Explorer 0 Win Type - Total 0 Types 0/0/0/0/0/0/0/0/0 Lore% 2 Gallery% 9 Achievement% 12 Wizard Run 0 Options --------- Layout 1 ASCII 0 Keyboard 0 Movement Arrows Keybinds 0 Fullscreen 1 Font 24/Smallcaps Map View 50x35 Zoom Use 0% Tactical HUD 0 Map Filters NONE Filters NONE Steam 1 RUN: 506c9743-38b2-4ee3-a883-a56330620989